Workbook

Sheet ポジションサイズの計算
B1: GBPUSD 日足 2009年11月８日～２０１５年４月２７日
B4: エントリー前 | I4: 決済後 | M4: 損益pips | P4: 損切り幅の計算
B5: A | C5: B | E5: C | F5: D | G5: E | I5: F | J5: G | K5: I | L5: J | M5: K | N5: L | O5: M | P5: 1 | Q5: 2 | R5: 3 | T5: エントリー | V5: 決済
A6: No | B6: 資金 | C6: ロスカット | D6: 損切り額 | E6: 損切り幅 | F6: レート | G6: ﾎﾟｼﾞｼｮﾝｻｲｽﾞ | I6: 獲得pips | J6: 万通貨 | K6: レート | L6: 損益 | M6: エントリー | N6: 決済 | O6: 損益 | P6: STOP | Q6: エントリー | R6: 損切り幅 | S6: 売買 | T6: 日付 | U6: 時間 | V6: 日付 | W6: 時間
A8: 1 | B8: 1000000 | C8: 0.03 | D8: =SUM(B8*C8) -> 30000 | E8: 196.6 | F8: 124 | G8: =SUM(B8*C8/E8/F8) -> 1.230597578 | H8: =SUM(J8*E8)*100 -> 23592 | I8: 245.9 | J8: 1.2 | K8: 124 | L8: =SUM(I8*J8*K8) -> 36589.92 | M8: 1.64541 | N8: 1.67 | O8: =SUM(N8-M8) -> 0.02459 | P8: 1.62575 | Q8: 1.64541 | R8: =SUM(Q8-P8)*10000 -> 196.6 | S8: 買 | T8: 2015-11-04 | U8: 2009 | V8: 2015-11-08 | W8: 00:00:00 | X8: 2009
A9: 2 | B9: =SUM(B8+L8) -> 1036589.92 | C9: 0.03 | D9: =SUM(B9*C9) -> 31097.6976 | E9: 248 | F9: 124 | G9: =SUM(B9*C9/E9/F9) -> 1.011241467 | H9: =SUM(J9*E9)*100 -> 24800 | I9: 543 | J9: 1 | K9: 124 | L9: =SUM(I9*J9*K9) -> 67332 | M9: 1.64167 | N9: 1.58737 | O9: =SUM(M9-N9) -> 0.0543 | P9: 1.66647 | Q9: 1.64167 | R9: =SUM(P9-Q9)*10000 -> 248 | S9: 売 | T9: 2015-11-26 | U9: 00:00:00 | V9: 2015-12-29 | W9: 00:00:00
A10: 3 | B10: =SUM(B9+L9) -> 1103921.92 | C10: 0.03 | D10: 33117.6576 | E10: 107.6 | F10: 124 | G10: 2.482136467 | H10: 25824 | I10: 1110 | J10: 2.4 | K10: 124 | L10: 330336 | M10: 1.611 | N10: 1.5 | O10: =SUM(M10-N10) -> 0.111 | P10: 1.62176 | Q10: 1.611 | R10: 107.6 | S10: 売 | T10: 2015-01-29 | U10: 00:00:00 | V10: 2015-03-01 | W10: 00:00:00 | X10: 2010
A11: 4 | B11: =SUM(B10+L10) -> 1434257.92 | C11: 0.03 | D11: 43027.7376 | E11: 149.9 | F11: 124 | G11: 2.314862467 | H11: 34477 | I11: 445.7 | J11: 2.3 | K11: 124 | L11: 127113.64 | M11: 1.5241 | N11: 1.47953 | O11: =SUM(M11-N11) -> 0.04457 | P11: 1.53909 | Q11: 1.5241 | R11: 149.9 | S11: 売 | T11: 2015-05-02 | U11: 00:00:00 | V11: 2015-05-06 | W11: 00:00:00
A12: 5 | B12: =SUM(B11+L11) -> 1561371.56 | C12: 0.03 | D12: 46841.1468 | E12: 169.6 | F12: 124 | G12: 2.227306509 | H12: 37312 | I12: 1104.3 | J12: 2.2 | K12: 124 | L12: 301253.04 | M12: 1.48545 | N12: 1.59588 | O12: =SUM(N12-M12) -> 0.11043 | P12: 1.46849 | Q12: 1.48545 | R12: =SUM(Q12-P12)*10000 -> 169.6 | S12: 買 | T12: 2015-02-23 | U12: 00:00:00 | V12: 2015-08-03 | W12: 00:00:00 | X12: 2011
A13: 6 | B13: =SUM(B12+L12) -> 1862624.6 | C13: 0.03 | D13: 55878.738 | E13: 180.9 | F13: 124 | G13: 2.491072327 | H13: 45225 | I13: 147.7 | J13: 2.5 | K13: 124 | L13: 45787 | M13: 1.54948 | N13: 1.53471 | O13: =SUM(M13-N13) -> 0.01477 | P13: 1.56757 | Q13: 1.54948 | R13: 180.9 | S13: 売 | T13: 2015-08-19 | U13: 00:00:00 | V13: 2015-09-07 | W13: 00:00:00
A14: 7 | B14: =SUM(B13+L13) -> 1908411.6 | C14: 0.03 | D14: 57252.348 | E14: 195.9 | F14: 124 | G14: 2.356878427 | H14: 45057 | I14: 345.6 | J14: 2.3 | K14: 124 | L14: 98565.12 | M14: 1.56466 | N14: 1.59922 | O14: =SUM(N14-M14) -> 0.03456 | P14: 1.54496 | Q14: 1.56455 | R14: =SUM(Q14-P14)*10000 -> 195.9 | S14: 買 | T14: 2015-09-16 | U14: 00:00:00 | V14: 2015-10-07 | W14: 00:00:00
A15: 8 | B15: =SUM(B14+L14) -> 2006976.72 | C15: 0.03 | D15: 60209.3016 | E15: 189.9 | F15: 124 | G15: =SUM(B15*C15/E15/F15) -> 2.55691882 | H15: 47475 | I15: 298.4 | J15: 2.5 | K15: 124 | L15: 92504 | M15: 1.58957 | N15: 1.55973 | O15: =SUM(M15-N15) -> 0.02984 | P15: 1.60856 | Q15: 1.58957 | R15: 189.9 | S15: 売 | T15: 2015-11-23 | U15: 00:00:00 | V15: 2015-12-01 | W15: 00:00:00
A16: 9 | B16: =SUM(B15+L15) -> 2099480.72 | C16: 0.03 | D16: 62984.4216 | E16: 131.3 | F16: 124 | G16: =SUM(B16*C16/E16/F16) -> 3.868536815 | H16: 49894 | I16: 55.8 | J16: 3.8 | K16: 124 | L16: 26292.96 | M16: 1.56029 | N16: 1.56587 | O16: =SUM(N16-M16) -> 0.00558 | P16: 1.54716 | Q16: 1.56029 | R16: =SUM(Q16-P16)*10000 -> 131.3 | S16: 買 | T16: 2015-01-11 | U16: 00:00:00 | V16: 2015-01-13 | W16: 00:00:00 | X16: 2012
A17: 10 | B17: =SUM(B16+L16) -> 2125773.68 | C17: 0.03 | D17: 63773.2104 | E17: 45 | F17: 124 | G17: 11.42889075 | H17: 51300 | I17: 503.2 | J17: 11.4 | K17: 124 | L17: 711323.52 | M17: 1.57178 | N17: 1.6221 | O17: =SUM(N17-M17) -> 0.05032 | P17: 1.56728 | Q17: 1.57178 | R17: =SUM(Q17-P17)*10000 -> 45 | S17: 買 | T17: 2015-06-21 | U17: 00:00:00 | V17: 2015-09-14 | W17: 00:00:00
A18: 11 | B18: =SUM(B17+L17) -> 2837097.2 | C18: 0.03 | D18: 85112.916 | E18: 93.7 | F18: 124 | G18: 7.325448067 | H18: 68401 | I18: 127.2 | J18: 7.3 | K18: 124 | L18: 115141.44 | M18: 1.59499 | N18: 1.58227 | O18: =SUM(M18-N18) -> 0.01272 | P18: 1.60436 | Q18: 1.59499 | R18: =SUM(P18-Q18)*10000 -> 93.7 | S18: 売 | T18: 2015-11-08 | U18: 00:00:00 | V18: 2015-11-15 | W18: 00:00:00
A19: 12 | B19: =SUM(B18+L18) -> 2952238.64 | C19: 0.03 | D19: 88567.1592 | E19: 69.8 | F19: 124 | G19: 10.23282642 | H19: 71196 | I19: 324.5 | J19: 10.2 | K19: 124 | L19: 410427.6 | M19: 1.5986 | N19: 1.63105 | O19: =SUM(N19-M19) -> 0.03245 | P19: 1.59162 | Q19: 1.5986 | R19: =SUM(Q19-P19)*10000 -> 69.8 | S19: 買 | T19: 2015-11-24 | U19: 00:00:00 | V19: 2015-12-19 | W19: 00:00:00
A20: 13 | B20: =SUM(B19+L19) -> 3362666.24 | C20: 0.03 | D20: 100879.9872 | E20: 99.3 | F20: 124 | G20: 8.192832667 | H20: 81426 | I20: 838 | J20: 8.2 | K20: 124 | L20: 852078.4 | M20: 1.60776 | N20: 1.52396 | O20: =SUM(M20-N20) -> 0.0838 | P20: 1.61769 | Q20: 1.60776 | R20: =SUM(P20-Q20)*10000 -> 99.3 | S20: 売 | T20: 2015-01-12 | U20: 00:00:00 | V20: 2015-02-21 | W20: 00:00:00 | X20: 2013
A21: 14 | B21: =SUM(B20+L20) -> 4214744.64 | C21: 0.03 | D21: 126442.3392 | E21: 165.6 | F21: 124 | G21: 6.157586255 | H21: 101016 | I21: 140.4 | J21: 6.1 | K21: 124 | L21: 106198.56 | M21: 1.51955 | N21: 1.53359 | O21: =SUM(N21-M21) -> 0.01404 | P21: 1.50299 | Q21: 1.51955 | R21: =SUM(Q21-P21)*10000 -> 165.6 | S21: 買 | T21: 2015-04-05 | U21: 00:00:00 | V21: 2015-04-08 | W21: 00:00:00
A22: 15 | B22: =SUM(B21+L21) -> 4320943.2 | C22: 0.03 | D22: 129628.296 | E22: 87 | F22: 124 | G22: =SUM(B22*C22/E22/F22) -> 12.01597108 | H22: 104400 | I22: 237.9 | J22: 12 | K22: 124 | L22: 353995.2 | M22: 1.67462 | N22: 1.69841 | O22: =SUM(N22-M22) -> 0.02379 | P22: 1.66592 | Q22: 1.67462 | R22: =SUM(Q22-P22)*10000 -> 87 | S22: 買 | T22: 2015-04-16 | U22: 00:00:00 | V22: 2015-05-06 | W22: 00:00:00 | X22: 2014
A23: 16 | B23: =SUM(B22+L22) -> 4674938.4 | C23: 0.03 | D23: 140248.152 | E23: 73.8 | F23: 124 | G23: =SUM(B23*C23/E23/F23) -> 15.32565696 | H23: 112914 | I23: 635.9 | J23: 15.3 | K23: 124 | L23: 1206429.48 | M23: 1.70206 | N23: 1.63847 | O23: =SUM(M23-N23) -> 0.06359 | P23: 1.70944 | Q23: 1.70206 | R23: =SUM(P23-Q23)*10000 -> 73.8 | S23: 売 | T23: 2015-07-24 | U23: 00:00:00 | V23: 2015-09-06 | W23: 00:00:00
A24: 17 | B24: =SUM(B23+L23) -> 5881367.88 | C24: 0.03 | D24: 176441.0364 | E24: 147.5 | F24: 124 | G24: 9.646858196 | H24: 141600 | I24: 210.6 | J24: 9.6 | K24: 124 | L24: 250698.24 | M24: 1.57981 | N24: 1.55875 | O24: =SUM(M24-N24) -> 0.02106 | P24: 1.59456 | Q24: 1.57981 | R24: 147.5 | S24: 売 | T24: 2015-11-13 | U24: 00:00:00 | V24: 2015-11-14 | W24: 00:00:00
A25: 18 | B25: =SUM(B24+L24) -> 6132066.12 | C25: 0.03 | D25: 183961.9836 | E25: 76.1 | F25: 124 | G25: 19.49493277 | H25: 148395 | I25: 397.5 | J25: 19.5 | K25: 124 | L25: 961155 | M25: 1.55445 | N25: 1.5147 | O25: =SUM(M25-N25) -> 0.03975 | P25: 1.56206 | Q25: 1.55445 | R25: 76.1 | S25: 売 | T25: 2015-01-01 | U25: 00:00:00 | V25: 2015-01-07 | W25: 00:00:00 | X25: 2015
A26: 19 | B26: =SUM(B25+L25) -> 7093221.12 | C26: 0.03 | D26: 212796.6336 | E26: 97.4 | F26: 124 | G26: 17.61911585 | H26: 171424 | I26: 264.8 | J26: 17.6 | K26: 124 | L26: 577899.52 | M26: 1.49378 | N26: 1.52026 | O26: =SUM(N26-M26) -> 0.02648 | P26: 1.48404 | Q26: 1.49378 | R26: =SUM(Q26-P26)*10000 -> 97.4 | S26: 買 | T26: 2015-04-22 | U26: 00:00:00 | V26: 2015-04-27 | W26: 00:00:00
B27: =SUM(B26+L26) -> 7671120.64 | I27: =SUM(I8:I26) -> 7976.4 | L27: =SUM(L8:L26) -> 6671120.64

Sheet 気づき
A2: MA１０と２０に当たっているPBが少なかった。
A4: 決済をレジサポとFIBに限定してなるべく指値をおいて決済した。
A6: ダウ理論で崩れることなくトレンドが出ていたところがあったが、果たしてリアルで平然と見ていられるのか？！

Sheet 画像
